fUST/lending_fUST_20250717
["ID","MTS","AMOUNT","RATE_DAILY","PERIOD"]
[372734410,1752748255051,-1000.0,0.00022,2]
[372734412,1752748255062,-1000.0,0.00022,2]
[372734414,1752748255072,-1000.0,0.00022,2]
[372734416,1752748255082,-1000.0,0.00022,2]
[372734418,1752748255093,-1000.0,0.00022,2]
[372734420,1752748255103,-1000.0,0.00022,2]
[372734422,1752748255113,-1000.0,0.00022,2]
[372734424,1752748255123,-1000.0,0.00022,2]
[372734426,1752748255132,-1000.0,0.00022,2]
[372734428,1752748255143,-1000.0,0.00022,2]
[372734430,1752748255152,-1000.0,0.00022,2]
[372734432,1752748255162,-1000.0,0.00022,2]
[372734434,1752748255171,-1000.0,0.00022,2]
[372734436,1752748255180,-1000.0,0.00022,2]
[372734438,1752748255190,-1000.0,0.00022,2]
[372734440,1752748255199,-1000.0,0.00022,2]
[372734442,1752748255209,-1000.0,0.00022,2]
[372734444,1752748255218,-1000.0,0.00022,2]
[372734446,1752748255227,-1000.0,0.00022,2]
[372734448,1752748255237,-1000.0,0.00022,2]
[372734450,1752748255246,-1000.0,0.00022,2]
[372734452,1752748255255,-1000.0,0.00022,2]
[372734454,1752748255265,-1000.0,0.00022,2]
[372734456,1752748255274,-1000.0,0.00022,2]
[372734458,1752748255284,-1000.0,0.00022,2]
[372734460,1752748255295,-1000.0,0.00022,2]
[372734462,1752748255305,-1000.0,0.00022,2]
[372734464,1752748255319,-1000.0,0.00022,2]
[372734466,1752748255329,-1000.0,0.00022,2]
[372734468,1752748255339,-1000.0,0.00022,2]
[372734470,1752748255348,-476.16111942,0.00022,7]
[372734472,1752748255359,-1000.0,0.00022,2]
[372734474,1752748255368,-1000.0,0.00022,2]
[372734476,1752748255378,-1000.0,0.00022,2]
[372734478,1752748255388,-1000.0,0.00022,2]
[372734480,1752748255397,-1000.0,0.00022,2]
[372734482,1752748255407,-1000.0,0.00022,2]
[372734484,1752748255416,-1000.0,0.00022,2]
[372734486,1752748255426,-1000.0,0.00022,2]
[372734488,1752748255436,-1000.0,0.00022,2]
[372734490,1752748255446,-1000.0,0.00022,2]
[372734492,1752748255455,-1000.0,0.00022,2]
[372734494,1752748255464,-1000.0,0.00022,2]
[372734496,1752748255473,-1000.0,0.00022,2]
[372734498,1752748255483,-1000.0,0.00022,2]
[372734500,1752748255493,-151.0,0.00022,2]
[372734502,1752748255503,-75232.78270097,0.00022,2]
[372734504,1752748255513,-352.68495374,0.00022,2]
[372734506,1752748255522,-56456.42647882,0.00022,2]
[372734508,1752748255531,-7494.1932499,0.00022,2]
[372734510,1752748255540,-370.87880604,0.00022,14]
[372734512,1752748255551,-12607.95677342,0.00022,7]
[372734514,1752748255561,-214.44804168,0.00022,7]
[372734516,1752748255571,-151.0,0.00022,7]
[372734518,1752748255580,-397.0,0.00022,2]
[372734520,1752748255589,-16546.21594871,0.00022038,6]
[372734522,1752748255598,-535.78515,0.00022044,4]
[372734524,1752748255608,-250.0,0.00022073,2]
[372734526,1752748255617,-560.0,0.00022075,2]
[372734528,1752748255627,-162.95721284,0.00022082,2]
[372734530,1752748255636,-336.9,0.0002209,5]
[372734532,1752748255646,-1476.0,0.0002209,2]
[372734534,1752748255655,-151.0,0.0002209,2]
[372734536,1752748255664,-151.0,0.0002209,2]
[372734538,1752748255673,-151.0,0.0002209,2]
[372734540,1752748255683,-151.0,0.0002209,2]
[372734542,1752748255692,-151.0,0.0002209,2]
[372734544,1752748255701,-151.0,0.0002209,2]
[372734546,1752748255711,-500.0,0.0002209,2]
[372734548,1752748255720,-151.0,0.0002209,2]
[372734550,1752748255730,-500.0,0.0002209,2]
[372734552,1752748255739,-500.0,0.0002209,2]
[372734554,1752748255748,-1481.0,0.0002209,2]
[372734556,1752748255760,-500.0,0.0002209,2]
[372734558,1752748255769,-151.0,0.0002209,2]
[372734560,1752748255778,-151.70381262,0.0002209,2]
[372734562,1752748255787,-262.01277808,0.0002209,2]
[372734564,1752748255798,-151.0,0.0002209,2]
[372734566,1752748255807,-151.0,0.0002209,2]
[372734568,1752748255817,-500.0,0.0002209,2]
[372734570,1752748255827,-151.0,0.00022136,7]
[372734572,1752748255837,-151.0,0.00022136,7]
[372734574,1752748255847,-178.421169,0.00022136,7]
[372734576,1752748255857,-151.0,0.00022136,7]
[372734578,1752748255867,-131709.2994328,0.00022136,2]
[372734580,1752748255876,-397.0,0.00022192,7]
[372734582,1752748255886,-162.95721284,0.00022192,2]
[372734584,1752748255896,-1304.83,0.00022203,2]
[372734586,1752748255907,-3403.72,0.00022205,2]
[372734588,1752748255917,-2746.61,0.00022205,2]
[372734590,1752748255927,-2633.16,0.00022205,2]
[372734592,1752748255937,-598.18,0.00022205,2]
[372734594,1752748255946,-460.0,0.00022205,2]
[372734596,1752748255956,-1025.92,0.00022205,2]
[372734598,1752748255965,-1168.37,0.00022205,2]
[372734600,1752748255975,-533.73,0.00022205,2]
[372734602,1752748255984,-460.0,0.00022205,2]
[372734604,1752748255994,-647.57,0.00022207,2]
[372734606,1752748256003,-543.85,0.00022207,2]
[372734608,1752748256013,-521.29,0.00022207,2]
[372734610,1752748256022,-843.3,0.00022207,2]
[372734612,1752748256032,-460.0,0.00022207,2]
[372734614,1752748256043,-485.68,0.00022207,2]
[372734616,1752748256054,-614.22,0.00022207,2]
[372734618,1752748256064,-460.0,0.00022207,2]
[372734620,1752748256074,-534.51,0.00022207,2]
[372734622,1752748256084,-3796.69,0.00022208,2]
[372734624,1752748256101,-460.0,0.00022208,2]
[372734626,1752748256122,-1252.7,0.00022208,2]
[372734628,1752748256132,-531.15,0.00022208,2]
[372734630,1752748256142,-1517.43,0.00022208,2]
[372734632,1752748256152,-460.0,0.00022208,2]
[372734634,1752748256162,-1578.46,0.00022209,2]
[372734636,1752748256171,-539.39,0.00022212,2]
[372734638,1752748256181,-541.25,0.00022212,2]
[372734640,1752748256190,-475.56,0.00022212,2]
[372734642,1752748256207,-1182.36,0.00022212,2]
[372734644,1752748256224,-712.85,0.00022212,2]
[372734646,1752748256235,-151.0,0.00022212,7]
[372734648,1752748256244,-1225.88823109,0.00022212,2]
[372734664,1752748256390,-460.0,0.00017821,2]
[372734665,1752748256402,-460.0,0.00017823,2]
[372734668,1752748256412,-460.0,0.00017823,2]
[372734669,1752748256423,-460.0,0.00018095,2]
[372734671,1752748256433,-460.0,0.00018097,2]
[372734673,1752748256442,-460.0,0.00018369,2]
[372734676,1752748256452,-500.18,0.00018643,2]
[372734677,1752748256462,-460.0,0.00019468,2]
[372734680,1752748256472,-460.0,0.00019742,2]
[372734682,1752748256481,-375.51,0.00020016,2]
[372734684,1752748256491,-299.23176891,0.00022212,2]
[372734687,1752748256606,-644.59,0.00022212,2]
[372734688,1752748256616,-151.0,0.00022212,7]
[372734689,1752748256625,-3110.10964895,0.00022212,2]
[372734787,1752748257602,-1435.19035105,0.00022212,2]
[372734789,1752748257612,-154.823528,0.00022212,7]
[372734791,1752748257621,-154.823528,0.00022212,7]
[372734793,1752748257631,-336.196286,0.00022212,7]
[372734795,1752748257640,-1352.58,0.00022212,2]
[372734797,1752748257649,-336.196286,0.00022212,7]
[372734799,1752748257658,-389.789399,0.00022212,7]
[372734801,1752748257669,-389.789399,0.00022212,7]
[372734803,1752748257679,-151.0,0.00022212,7]
[372734805,1752748257688,-500.0,0.00022222,2]
[372734807,1752748257697,-500.0,0.0002223,2]
[372734809,1752748257707,-151.0,0.00022279,7]
[372734811,1752748257717,-445.42643,0.00022279,7]
[372734813,1752748257726,-445.42643,0.00022279,7]
[372734815,1752748257735,-151.0,0.00022279,7]
[372734817,1752748257744,-160.0,0.00022306,5]
[372734819,1752748257754,-153.0,0.00022307,2]
[372734821,1752748257764,-10806.85912429,0.00022314,7]
[372738271,1752748333029,-5500.0,0.00017719,2]
[372738274,1752748356427,214.31486976,0.00017187,2]
[372738276,1752748396441,151.0,0.000175,2]
[372738294,1752748528206,3007.98,0.00024658,60]
[372738296,1752748594319,150.0,0.00013941,2]
[372738300,1752748729072,4214.19609276,0.000175,2]
[372738301,1752748741114,5000.0,0.000175,2]
[372738302,1752748762030,5000.0,0.000175,2]
[372738303,1752748781696,13.62233125,0.000175,2]
[372738304,1752748781718,4986.37766875,0.000175,2]
[372738305,1752748797132,5000.0,0.000175,2]
[372738306,1752748812513,5000.0,0.000175,2]
[372738307,1752748827623,5000.0,0.000175,2]
[372738308,1752748827756,446.75474308,0.0001,2]
[372738309,1752748831410,4566.86758817,0.000175,2]
[372738310,1752748831433,25000.0,0.000175,2]
[372738311,1752748831455,25000.0,0.000175,2]
[372738312,1752748831478,25000.0,0.000175,2]
[372738313,1752748831504,25000.0,0.000175,2]
[372738314,1752748831529,25000.0,0.000175,2]
[372738315,1752748831553,20433.13241183,0.000175,2]
[372738316,1752748840142,4566.86758817,0.00016715,2]
[372738317,1752748840166,20333.13241183,0.00016715,2]
[372738318,1752748845790,4666.86758817,0.000175,2]
[372738319,1752748845814,333.13241183,0.000175,2]
[372738320,1752748861661,5000.0,0.000175,2]
[372738321,1752748877826,5000.0,0.000175,2]
[372738322,1752748893901,5000.0,0.000175,2]
[372738324,1752748909290,5000.0,0.000175,2]
[372738325,1752748926952,4666.86758817,0.000175,2]
[372738326,1752748926972,333.13241183,0.000175,2]
[372738327,1752748944476,5000.0,0.000175,2]
[372738328,1752748960972,5000.0,0.000175,2]
[372738329,1752748978568,5000.0,0.000175,2]
[372738330,1752748994833,5000.0,0.000175,2]
[372738331,1752749010700,4666.86758817,0.000175,2]
[372738332,1752749010725,333.13241183,0.000175,2]
[372738333,1752749029048,5000.0,0.000175,2]
[372738334,1752749045296,5000.0,0.000175,2]
[372738335,1752749063935,5000.0,0.000175,2]
[372738337,1752749081732,739.026959,0.00013699,2]
[372738338,1752749081806,5000.0,0.000175,2]
[372738339,1752749097437,3927.84062917,0.000175,2]
[372738340,1752749097461,1072.15937083,0.000175,2]
[372738341,1752749114663,5000.0,0.000175,2]
[372738343,1752749132252,3927.84062917,0.000175,2]
[372738344,1752749132276,1072.15937083,0.000175,2]
[372738345,1752749147577,5000.0,0.000175,2]
[372738346,1752749163547,3927.84062917,0.000175,2]
[372738347,1752749163570,1072.15937083,0.000175,2]
[372738348,1752749180208,5000.0,0.000175,2]
[372738349,1752749192615,3927.84062917,0.00016681,2]
[372738350,1752749192640,6072.15937083,0.00016681,2]
[372738351,1752749197489,3927.84062917,0.000175,2]
[372738352,1752749197514,1072.15937083,0.000175,2]
[372738354,1752749214008,5000.0,0.000175,2]
[372738356,1752749227754,155.0,0.000175,2]
[372738357,1752749230632,3772.84062917,0.000175,2]
[372738358,1752749230655,1227.15937083,0.000175,2]
[372738359,1752749247309,5000.0,0.000175,2]
[372738360,1752749263339,3772.84062917,0.000175,2]
[372738361,1752749263363,1227.15937083,0.000175,2]
[372738362,1752749263462,1416.627056,0.00016661,2]
[372738363,1752749280700,5000.0,0.000175,2]
[372738364,1752749296030,2356.21357317,0.000175,2]
[372738365,1752749296055,2643.78642683,0.000175,2]
[372738367,1752749313294,5000.0,0.000175,2]
[372738368,1752749329685,2356.21357317,0.000175,2]
[372738369,1752749329709,2643.78642683,0.000175,2]
[372738371,1752749345612,5000.0,0.000175,2]
[372738372,1752749354315,155.0,0.000175,2]
[372738373,1752749361587,2201.21357317,0.000175,2]
[372738374,1752749361614,2798.78642683,0.000175,2]
[372738378,1752749376991,5000.0,0.000175,2]
[372738379,1752749394539,2201.21357317,0.000175,2]
[372738380,1752749394562,2798.78642683,0.000175,2]
[372738381,1752749410423,5000.0,0.000175,2]
[372738382,1752749426830,2201.21357317,0.000175,2]
[372738383,1752749426854,2798.78642683,0.000175,2]
[372739024,1752749437917,-509.77476595,0.00017614,2]
[372739026,1752749437928,-1200.0,0.00017647,2]
[372739028,1752749437938,-297.0,0.00017648,2]
[372739030,1752749437947,-300.0,0.00017648,2]
[372739032,1752749437956,-300.0,0.00017648,2]
[372739034,1752749437966,-1200.0,0.00017649,2]
[372739036,1752749437975,-1667.67765258,0.0001765,2]
[372739038,1752749437986,-8332.32234742,0.0001765,2]
[372739040,1752749437996,-460.0,0.00017669,2]
[372739042,1752749438006,-460.0,0.00017669,2]
[372739044,1752749438015,-460.0,0.00017669,2]
[372739046,1752749438024,-460.0,0.00017669,2]
[372739048,1752749438033,-460.0,0.00017669,2]
[372739050,1752749438044,-460.0,0.00017669,2]
[372739052,1752749438053,-460.0,0.00017669,2]
[372739054,1752749438063,-460.0,0.00017669,2]
[372739056,1752749438072,-460.0,0.00017669,2]
[372739058,1752749438081,-460.0,0.00017669,2]
[372739060,1752749438091,-500.0,0.0001767,2]
[372739062,1752749438101,-500.0,0.0001767,2]
[372739064,1752749438110,-500.0,0.0001767,2]
[372739066,1752749438120,-500.0,0.0001767,2]
[372739068,1752749438129,-500.0,0.0001767,2]
[372739071,1752749438138,-523.9694531,0.0001767,2]
[372739073,1752749438147,-437.29797431,0.0001767,2]
[372739075,1752749438157,-178.31784376,0.0001767,2]
[372739077,1752749438168,-188.6274259,0.0001767,2]
[372739079,1752749438178,-500.0,0.0001767,2]
[372739081,1752749438188,-500.0,0.0001767,2]
[372739083,1752749438197,-500.0,0.0001767,2]
[372739085,1752749438207,-500.0,0.0001767,2]
[372739087,1752749438216,-500.0,0.0001767,2]
[372739089,1752749438226,-500.0,0.0001767,2]
[372739091,1752749438239,-500.0,0.0001767,2]
[372739093,1752749438248,-500.0,0.0001767,2]
[372739096,1752749438258,-500.0,0.0001767,2]
[372739098,1752749438267,-500.0,0.0001767,2]
[372739100,1752749438277,-239.34234352,0.0001767,2]
[372739113,1752749438390,-260.65765648,0.0001767,2]
[372739115,1752749438399,-500.0,0.0001767,2]
[372739117,1752749438409,-500.0,0.0001767,2]
[372739119,1752749438418,-500.0,0.0001767,2]
[372739121,1752749438428,-500.0,0.0001767,2]
[372739123,1752749438437,-500.0,0.0001767,2]
[372739125,1752749438447,-500.0,0.0001767,2]
[372739127,1752749438456,-500.0,0.0001767,2]
[372739129,1752749438465,-500.0,0.0001767,2]
[372739131,1752749438474,-500.0,0.0001767,2]
[372739133,1752749438483,-500.0,0.0001767,2]
[372739135,1752749438492,-500.0,0.0001767,2]
[372739137,1752749438502,-500.0,0.0001767,2]
[372739139,1752749438511,-500.0,0.0001767,2]
[372739141,1752749438520,-500.0,0.0001767,2]
[372739143,1752749438530,-500.0,0.0001767,2]
[372739145,1752749438539,-636.74507597,0.0001767,2]
[372739147,1752749438550,-500.0,0.0001767,2]
[372739149,1752749438559,-500.0,0.0001767,2]
[372739151,1752749438569,-394.20149513,0.0001767,2]
[372739153,1752749438579,-500.0,0.0001767,2]
[372739155,1752749438588,-500.0,0.0001767,2]
[372739157,1752749438597,-500.0,0.0001767,2]
[372739159,1752749438607,-500.0,0.0001767,2]
[372739161,1752749438616,-500.0,0.0001767,2]
[372739163,1752749438625,-500.0,0.0001767,2]
[372739165,1752749438635,-500.0,0.0001767,2]
[372739167,1752749438646,-500.0,0.0001767,2]
[372739169,1752749438656,-333.13439004,0.0001767,2]
[372739171,1752749438666,-500.0,0.0001767,2]
[372739173,1752749438676,-500.0,0.0001767,2]
[372739175,1752749438687,-500.0,0.0001767,2]
[372739177,1752749438696,-522.53079831,0.0001767,2]
[372739179,1752749438706,-500.0,0.0001767,2]
[372739181,1752749438716,-500.0,0.0001767,2]
[372739183,1752749438731,-436.83609592,0.0001767,2]
[372739187,1752749438751,-500.0,0.0001767,2]
[372739189,1752749438762,-500.0,0.0001767,2]
[372739191,1752749438772,-500.0,0.0001767,2]
[372739193,1752749438782,-500.0,0.0001767,2]
[372739195,1752749438791,-500.0,0.0001767,2]
[372739197,1752749438801,-500.0,0.0001767,2]
[372739199,1752749438812,-500.0,0.0001767,2]
[372739201,1752749438822,-500.0,0.0001767,2]
[372739224,1752749439026,-500.0,0.0001767,2]
[372739227,1752749439051,-500.0,0.0001767,2]
[372739229,1752749439062,-500.0,0.0001767,2]
[372739231,1752749439071,-500.0,0.0001767,2]
[372739233,1752749439081,-500.0,0.0001767,2]
[372739235,1752749439091,-500.0,0.0001767,2]
[372739237,1752749439100,-500.0,0.0001767,2]
[372739239,1752749439110,-500.0,0.0001767,2]
[372739241,1752749439120,-500.0,0.0001767,2]
[372739243,1752749439130,-481.98684465,0.0001767,2]
[372739245,1752749439140,-500.0,0.0001767,2]
[372739248,1752749439151,-500.0,0.0001767,2]
[372739251,1752749439161,-500.0,0.0001767,2]
[372739253,1752749439171,-500.0,0.0001767,2]
[372739255,1752749439180,-500.0,0.0001767,2]
[372739257,1752749439189,-500.0,0.0001767,2]
[372739259,1752749439199,-500.0,0.0001767,2]
[372739261,1752749439209,-500.0,0.0001767,2]
[372739263,1752749439220,-500.0,0.0001767,2]
[372739265,1752749439229,-500.0,0.0001767,2]
[372739267,1752749439239,-500.0,0.0001767,2]
[372739269,1752749439248,-500.0,0.0001767,2]
[372739271,1752749439258,-500.0,0.0001767,2]
[372739273,1752749439267,-500.0,0.0001767,2]
[372739275,1752749439277,-500.0,0.0001767,2]
[372739277,1752749439287,-500.0,0.0001767,2]
[372739280,1752749439298,-500.0,0.0001767,2]
[372739283,1752749439307,-500.0,0.0001767,2]
[372739285,1752749439317,-500.0,0.0001767,2]
[372739287,1752749439326,-500.0,0.0001767,2]
[372739289,1752749439335,-500.0,0.0001767,2]
[372739291,1752749439344,-500.0,0.0001767,2]
[372739294,1752749439354,-500.0,0.0001767,2]
[372739296,1752749439364,-500.0,0.0001767,2]
[372739298,1752749439374,-500.0,0.0001767,2]
[372739300,1752749439383,-500.0,0.0001767,2]
[372739302,1752749439394,-500.0,0.0001767,2]
[372739304,1752749439404,-721.75368251,0.0001767,2]
[372739306,1752749439413,-721.75368251,0.0001767,2]
[372739308,1752749439423,-500.0,0.0001767,2]
[372739310,1752749439433,-500.0,0.0001767,2]
[372739312,1752749439442,-721.75368251,0.0001767,2]
[372739314,1752749439452,-500.0,0.0001767,2]
[372739316,1752749439462,-500.0,0.0001767,2]
[372739318,1752749439471,-500.0,0.0001767,2]
[372739320,1752749439480,-500.0,0.0001767,2]
[372739322,1752749439494,-500.0,0.0001767,2]
[372739324,1752749439503,-721.75368251,0.0001767,2]
[372739326,1752749439512,-500.0,0.0001767,2]
[372739328,1752749439522,-721.75368251,0.0001767,2]
[372739330,1752749439531,-500.0,0.0001767,2]
[372739332,1752749439540,-500.0,0.0001767,2]
[372739334,1752749439551,-500.0,0.0001767,2]
[372739335,1752749439560,-200.0,0.0001767,2]
[372739336,1752749439569,-500.0,0.0001767,2]
[372739337,1752749439578,-500.0,0.0001767,2]
[372739338,1752749439588,-500.0,0.0001767,2]
[372739339,1752749439597,-500.0,0.0001767,2]
[372739340,1752749439607,-500.0,0.0001767,2]
[372739341,1752749439616,-500.0,0.0001767,2]
[372739342,1752749439625,-500.0,0.0001767,2]
[372739343,1752749439634,-317.43350959,0.0001767,2]
[372739344,1752749439645,-500.0,0.0001767,2]
[372739345,1752749439654,-500.0,0.0001767,2]
[372739346,1752749439663,-500.0,0.0001767,2]
[372739347,1752749439673,-500.0,0.0001767,2]
[372739348,1752749439682,-500.0,0.0001767,2]
[372739349,1752749439693,-500.0,0.0001767,2]
[372739350,1752749439702,-500.0,0.0001767,2]
[372739351,1752749439712,-500.0,0.0001767,2]
[372739352,1752749439721,-500.0,0.0001767,2]
[372739353,1752749439730,-500.0,0.0001767,2]
[372739354,1752749439739,-500.0,0.0001767,2]
[372739355,1752749439748,-500.0,0.0001767,2]
[372739356,1752749439761,-500.0,0.0001767,2]
[372739357,1752749439770,-500.0,0.0001767,2]
[372739358,1752749439779,-500.0,0.0001767,2]
[372739359,1752749439788,-500.0,0.0001767,2]
[372739360,1752749439800,-500.0,0.0001767,2]
[372739361,1752749439809,-500.0,0.0001767,2]
[372739363,1752749439818,-500.0,0.0001767,2]
[372739365,1752749439828,-500.0,0.0001767,2]
[372739367,1752749439838,-500.0,0.0001767,2]
[372739369,1752749439848,-500.0,0.0001767,2]
[372739371,1752749439857,-500.0,0.0001767,2]
[372739373,1752749439867,-500.0,0.0001767,2]
[372739375,1752749439876,-500.0,0.0001767,2]
[372739377,1752749439885,-500.0,0.0001767,2]
[372739379,1752749439895,-500.0,0.0001767,2]
[372739381,1752749439905,-500.0,0.0001767,2]
[372739383,1752749439914,-500.0,0.0001767,2]
[372739385,1752749439924,-500.0,0.0001767,2]
[372739387,1752749439933,-500.0,0.0001767,2]
[372739389,1752749439943,-500.0,0.0001767,2]
[372739391,1752749439953,-500.0,0.0001767,2]
[372739393,1752749439963,-500.0,0.0001767,2]
[372739395,1752749439972,-500.0,0.0001767,2]
[372739397,1752749439982,-500.0,0.0001767,2]
[372739399,1752749439991,-500.0,0.0001767,2]
[372739401,1752749440001,-500.0,0.0001767,2]
[372739403,1752749440011,-500.0,0.0001767,2]
[372739405,1752749440020,-500.0,0.0001767,2]
[372739407,1752749440030,-500.0,0.0001767,2]
[372739410,1752749440040,-500.0,0.0001767,2]
[372739413,1752749440051,-500.0,0.0001767,2]
[372739416,1752749440060,-500.0,0.0001767,2]
[372739420,1752749440070,-500.0,0.0001767,2]
[372739422,1752749440079,-500.0,0.0001767,2]
[372739424,1752749440088,-500.0,0.0001767,2]
[372739426,1752749440098,-500.0,0.0001767,2]
[372739429,1752749440108,-500.0,0.0001767,2]
[372739431,1752749440118,-500.0,0.0001767,2]
[372739433,1752749440128,-500.0,0.0001767,2]
[372739435,1752749440138,-500.0,0.0001767,2]
[372739437,1752749440147,-510.97198009,0.0001767,2]
[372739439,1752749440157,-500.0,0.0001767,2]
[372739441,1752749440168,-500.0,0.0001767,2]
[372739443,1752749440177,-500.0,0.0001767,2]
[372739445,1752749440187,-500.0,0.0001767,2]
[372739447,1752749440198,-500.0,0.0001767,2]
[372739449,1752749440208,-500.0,0.0001767,2]
[372739452,1752749440218,-500.0,0.0001767,2]
[372739454,1752749440228,-500.0,0.0001767,2]
[372739456,1752749440237,-500.0,0.0001767,2]
[372739458,1752749440247,-500.0,0.0001767,2]
[372739460,1752749440257,-500.0,0.0001767,2]
[372739462,1752749440267,-500.0,0.0001767,2]
[372739464,1752749440276,-500.0,0.0001767,2]
[372739466,1752749440286,-500.0,0.0001767,2]
[372739468,1752749440297,-500.0,0.0001767,2]
[372739470,1752749440307,-500.0,0.0001767,2]
[372739472,1752749440316,-500.0,0.0001767,2]
[372739474,1752749440325,-500.0,0.0001767,2]
[372739475,1752749440334,-500.0,0.0001767,2]
[372739478,1752749440344,-500.0,0.0001767,2]
[372739480,1752749440354,-500.0,0.0001767,2]
[372739482,1752749440364,-500.0,0.0001767,2]
[372739484,1752749440373,-500.0,0.0001767,2]
[372739486,1752749440383,-500.0,0.0001767,2]
[372739488,1752749440393,-500.0,0.0001767,2]
[372739490,1752749440402,-500.0,0.0001767,2]
[372739492,1752749440411,-293.25884624,0.0001767,2]
[372739494,1752749440421,-500.0,0.0001767,2]
[372739496,1752749440431,-500.0,0.0001767,2]
[372739498,1752749440440,-500.0,0.0001767,2]
[372739500,1752749440450,-500.0,0.0001767,2]
[372739502,1752749440459,-224.57318872,0.0001767,2]
[372739504,1752749440468,-500.0,0.0001767,2]
[372739506,1752749440478,-500.0,0.0001767,2]
[372739508,1752749440488,-500.0,0.0001767,2]
[372739510,1752749440497,-500.0,0.0001767,2]
[372739512,1752749440507,-529.41662625,0.0001767,2]
[372739514,1752749440516,-500.0,0.0001767,2]
[372739516,1752749440526,-26905.60365092,0.0001767,2]
[372739518,1752749440535,-575.3,0.00017671,2]
[372739520,1752749440545,-460.0,0.00017671,2]
[372739521,1752749440554,-460.0,0.00017671,2]
[372739523,1752749440564,-460.0,0.00017671,2]
[372739526,1752749440574,-460.0,0.00017671,2]
[372739527,1752749440585,-460.0,0.00017671,2]
[372739529,1752749440594,-460.0,0.00017671,2]
[372739531,1752749440604,-460.0,0.00017671,2]
[372739534,1752749440613,-1541.42,0.00017671,2]
[372739535,1752749440623,-460.0,0.00017671,2]
[372739537,1752749440633,-500.0,0.00017672,2]
[372739539,1752749440643,-2664.58856844,0.00017673,2]
[372739541,1752749440656,-2519.59076337,0.00017673,2]
[372739544,1752749440668,-263.24,0.00017697,3]
[372739546,1752749440678,-695.18,0.00017705,3]
[372739548,1752749440687,-347.59,0.00017705,3]
[372739550,1752749440699,-173.8,0.00017705,3]
[372739552,1752749440709,-521.41,0.00017705,3]
[372739554,1752749440718,-462.14506174,0.00017707,2]
[372739556,1752749440729,-460.0,0.00017707,2]
[372739558,1752749440739,-460.0,0.00017707,2]
[372739560,1752749440749,-460.0,0.00017707,2]
[372739562,1752749440758,-325.57932852,0.00017707,2]
[372739564,1752749440768,-460.0,0.00017707,2]
[372739566,1752749440778,-460.0,0.00017707,2]
[372739568,1752749440787,-525.62640427,0.00017707,2]
[372739570,1752749440799,-460.0,0.00017707,2]
[372739572,1752749440809,-460.0,0.00017707,2]
[372739574,1752749440818,-460.0,0.00017707,2]
[372739576,1752749440828,-460.0,0.00017707,2]
[372739578,1752749440837,-460.0,0.00017707,2]
[372739580,1752749440847,-460.0,0.00017707,2]
[372739582,1752749440857,-460.0,0.00017707,2]